Company(T),Trans.date,Supplier Name(T),TransNo,Amount,Irrecoverable VAT,Service/Dept(T),Procurement  Category,Account code,Account code(T),Narrative/Purpose of Spend,Govt Procurement Card
East Cambridgeshire District Council,22/03/2017,Apcoa,5106002,6.42,,National Practitioner Support Programme,Employees,1051,Staff Travelling,Meeting Parking,Y
East Cambridgeshire District Council,22/03/2017,Train Co,5106002,312.6,,National Practitioner Support Programme,Employees,1051,Staff Travelling,Rail Fares,Y
East Cambridgeshire District Council,22/03/2017,Lowden Garden Centre,5106002,11.25,,National Practitioner Support Programme,Employees,1052,Staff Subsistence,Meeting Lunch,Y
East Cambridgeshire District Council,22/03/2017,Google,5106002,39.6,,National Practitioner Support Programme,Employees,1052,Staff Subsistence,G Suite Basic,Y
East Cambridgeshire District Council,22/03/2017,M&S,5106002,8.98,,National Practitioner Support Programme,Employees,1052,Staff Subsistence,Lunch,Y
East Cambridgeshire District Council,22/03/2017,Ibis Cambridge,5106002,124.17,,National Practitioner Support Programme,Employees,1052,Staff Subsistence,Meeting Catering,Y
East Cambridgeshire District Council,27/02/2017,BRS Training Ltd,638194,846.25,,Member Training,Employees,1130,Training - In House,Executive Half Day Delegate Rate,
East Cambridgeshire District Council,02/03/2017,Institute of Groundsmanship (IOG),638177,950,,Parks And Open Spaces,Employees,1135,Training - External,IOG Bespoke Course 14/2/17,
East Cambridgeshire District Council,29/03/2017,Shelter Training Ltd,638362,620,,Training,Employees,1135,Training - External,Housing Law & Advice - Redacted Personal Data-Day 5-13/4/17,
East Cambridgeshire District Council,22/03/2017,RICS,5106002,150,,Training,Employees,1135,Training - External,Redacted - Personal data Conference,Y
East Cambridgeshire District Council,16/03/2017,University of Westminster,1136651,725,,Training,Employees,1136,Qualifications,Redacted Personal Data 2016/17 MA Int Planning,
East Cambridgeshire District Council,16/03/2017,University of Westminster,1136652,"2,901.00",,Training,Employees,1136,Qualifications,Redacted Personal Data 2016/17 MA Int Planning,
East Cambridgeshire District Council,16/03/2017,University of Westminster,1136650,"-3,262.50",,Training,Employees,1136,Qualifications,Credit for Invoice issued and paid in error.,
East Cambridgeshire District Council,21/03/2017,Local World Ltd - Cambridge Newspapers,638283,"1,000.00",,Building Regulations Non Fee Earning,Employees,1140,Staff Advertising,,
East Cambridgeshire District Council,28/03/2017,Local World Ltd - Cambridge Newspapers,638320,"1,275.00",,Human Resources,Employees,1140,Staff Advertising,Cambridge news 23/3/17,
East Cambridgeshire District Council,28/03/2017,Local World Ltd - Cambridge Newspapers,638357,"2,500.00",,Parks And Open Spaces,Employees,1140,Staff Advertising,,
East Cambridgeshire District Council,22/03/2017,Easylocks,5106002,116.5,,"PC Ship Lane, Ely",Premises,2010,Premises Materials,Radar Lock,Y
East Cambridgeshire District Council,22/03/2017,Aztek Services Ltd,1136663,"1,748.00",,E Space North,Premises,2020,Premises Contract Work,Annual Service Charge E-Space North,
East Cambridgeshire District Council,01/03/2017,East Cambs Trading Co Ltd,638185,"7,500.00",,Miscellaneous Properties,Premises,2030,Premises Asset Management,Operating Services Q3 to Dec 2016,
East Cambridgeshire District Council,21/03/2017,Dal Rod,638328,"1,220.00",,Travellers Site - Wentworth,Premises,2030,Premises Asset Management,Wentworth caravan park 14/3/17,
East Cambridgeshire District Council,24/03/2017,Cambridge Door Services Ltd,638334,541,,Parking Of Vehicles,Premises,2030,Premises Asset Management,Repairs to Barton Rd Car park Barrier,
East Cambridgeshire District Council,29/03/2017,East Cambs Trading Co Ltd,1136694,"7,500.00",,Miscellaneous Properties,Premises,2030,Premises Asset Management,Operating services Q4 End March 2017,
East Cambridgeshire District Council,14/02/2017,ESPO,1136432,629.48,,The Grange,Premises,2120,Gas,M040A0173612A6 The Grange 31/12/16-31/1/17,
East Cambridgeshire District Council,01/03/2017,ESPO,1136557,701.16,,The Grange,Premises,2120,Gas,M040A0173612A6 The Grange,
East Cambridgeshire District Council,10/03/2017,ESPO,1136623,514.72,,The Grange,Premises,2120,Gas,M040A0173612A6 The Grange,
East Cambridgeshire District Council,01/03/2017,ESPO,1136556,-629.48,,The Grange,Premises,2120,Gas,M040A0173612A6 The Grange,
East Cambridgeshire District Council,23/03/2017,Anglian Water Services Ltd,1136675,"-2,139.11",,"PC Fountain Lane, Soham",Premises,2410,Water Rates,0354614901 Public Toilets Fountain Lane Soham,
East Cambridgeshire District Council,23/03/2017,Anglian Water Services Ltd,1136675,"-2,266.99",,"PC Fountain Lane, Soham",Premises,2411,Sewerage Charge,0354614901 Public Toilets Fountain Lane Soham,
East Cambridgeshire District Council,20/03/2017,Rigby Taylor Limited,638278,"1,090.00",,Parks And Open Spaces,Premises,2810,Grounds Materials,,
East Cambridgeshire District Council,01/03/2017,Eastern Landscape Service Ltd,638175,970,,Tree Preservation/Landscaping,Premises,2814,Tree Management,Tree Work 07/2016 & 08/2016,
East Cambridgeshire District Council,21/03/2017,S P Landscapes & Tree Contractors Ltd,638291,650,,Tree Preservation/Landscaping,Premises,2814,Tree Management,Beech-Crown reduction by 3M,
East Cambridgeshire District Council,24/03/2017,Arbantia Limited,638312,935,,Travellers Site - Earith Bridge,Premises,2820,Grounds Contract Work,Replacement Fencing at Earith Travellers Site,
East Cambridgeshire District Council,30/03/2017,Camline Cambridge Ltd,638350,"1,890.00",,Parking Of Vehicles,Premises,2820,Grounds Contract Work,Marking Out Barton Road Car Park,
East Cambridgeshire District Council,22/03/2017,TV Licensing,5106002,145.5,,The Grange,Premises,2841,Licences,TV License,Y
East Cambridgeshire District Council,28/02/2017,Tailormade Metal Fabrications Ltd,638152,718.95,,Parks And Open Spaces,Transport,3010,Vehicle Repairs,Trailer & mark Redacted Personal Data,
East Cambridgeshire District Council,28/02/2017,Tailormade Metal Fabrications Ltd,638154,580.64,,Sanctuary Grasscutting,Transport,3010,Vehicle Repairs,Redacted Personal Data,
East Cambridgeshire District Council,27/02/2017,Geoff Glover Van Sales,638176,611.86,,Sanctuary Grasscutting,Transport,3010,Vehicle Repairs,"Mot, Service & Repairs FN10XOW",
East Cambridgeshire District Council,22/03/2017,TC Harrison,5106002,433.45,,Weekly Collection Support Grant,Transport,3010,Vehicle Repairs,Service,Y
East Cambridgeshire District Council,22/03/2017,TC Harrison,5106002,45,,Weekly Collection Support Grant,Transport,3010,Vehicle Repairs,Fuel Filter,Y
East Cambridgeshire District Council,02/03/2017,Be Fuelcards,1136567,732.39,,Parks And Open Spaces,Transport,3021,Derv,Fuelcards February 2017,
East Cambridgeshire District Council,16/03/2017,Commercial Services Trading Ltd,1136640,"4,053.33",264.51,Leased Cars,Transport,3051,Purchase Vehicles,Redacted Personal Data 16/2/17-15/2/18,
East Cambridgeshire District Council,27/03/2017,Commercial Services Trading Ltd,1136686,"6,441.17",497.67,Leased Cars,Transport,3051,Purchase Vehicles,Redacted Personal Data 20/3/17-19/3/18,
East Cambridgeshire District Council,22/02/2017,Canon (UK) Ltd,638166,984.17,,Printing/Copying,Supplies and Services,4011,Equipment - Repairs,TCS4 scanner USIIO Lamps,
East Cambridgeshire District Council,27/03/2017,AJ & R Scamblers & Sons Ltd,638331,716.13,,Sanctuary Grasscutting,Supplies and Services,4011,Equipment - Repairs,,
East Cambridgeshire District Council,06/03/2017,Cooler aid Ltd,1136592,"1,627.20",,The Grange,Supplies and Services,4012,Equipment - Vending Machines,Rental renewal,
East Cambridgeshire District Council,14/03/2017,Newmarket Plant Hire Ltd,638257,516.95,,Parks And Open Spaces,Supplies and Services,4013,Equipment - Hire,1.7M Trailer platform lift,
East Cambridgeshire District Council,17/03/2017,Cambridgeshire County Council,638270,"1,500.00",,Parks And Open Spaces,Supplies and Services,4015,S106 Spend,SuDS Planning & Maintenance Training,
East Cambridgeshire District Council,15/03/2017,Reesink Turfcare UK Ltd,638317,"39,469.00",,Parks And Open Spaces,Supplies and Services,4015,S106 Spend,,
East Cambridgeshire District Council,14/03/2017,Park Retail Ltd t/as Love2Reward,638256,"1,029.00",,Recycling Reward Scheme,Supplies and Services,4030,Materials - Purchase,Love2shop vouchers,
East Cambridgeshire District Council,22/03/2017,Sainsburys,5106002,62.49,,National Practitioner Support Programme,Supplies and Services,4110,Food /Refreshments Purchased,Meeting Catering,Y
East Cambridgeshire District Council,22/03/2017,M&S,5106002,43.7,,National Practitioner Support Programme,Supplies and Services,4110,Food /Refreshments Purchased,Meeting Catering ,Y
East Cambridgeshire District Council,22/03/2017,M&S,5106002,22.6,,National Practitioner Support Programme,Supplies and Services,4110,Food /Refreshments Purchased,Meeting Catering,Y
East Cambridgeshire District Council,01/03/2017,Shaw & Sons Ltd,638168,570.9,,Combined Authority Mayoral Elections,Supplies and Services,4310,Printing & Stationery,,
East Cambridgeshire District Council,01/03/2017,Shaw & Sons Ltd,638168,736.65,,County Council Elections,Supplies and Services,4310,Printing & Stationery,,
East Cambridgeshire District Council,01/03/2017,Hussey Knights Ltd,638182,613.92,,Printing/Copying,Supplies and Services,4310,Printing & Stationery,,
East Cambridgeshire District Council,22/03/2017,Abbey Stationery,5106002,55.83,,Local Elections,Supplies and Services,4310,Printing & Stationery,Adhesive Wallets,Y
East Cambridgeshire District Council,22/03/2017,BSI,5106002,318,,Env Health - Admin,Supplies and Services,4320,Publications & books,Noise Limits,Y
East Cambridgeshire District Council,01/03/2017,The Oyster Partnership,638178,893,,Planning,Supplies and Services,4401,Agency Workers,Redacted Personal Data - Week Commencing 20/2/17,
East Cambridgeshire District Council,08/03/2017,The Oyster Partnership,638228,760,,Planning,Supplies and Services,4401,Agency Workers,Redacted Personal Data - Week Commencing 27/2/17,
East Cambridgeshire District Council,17/03/2017,The Oyster Partnership,638274,"1,216.00",,Planning,Supplies and Services,4401,Agency Workers,Redacted Personal Data - Week Commencing 06/03/17,
East Cambridgeshire District Council,23/03/2017,The Oyster Partnership,638307,"1,026.00",,Planning,Supplies and Services,4401,Agency Workers,Redacted Personal Data W/C 13/3/17,
East Cambridgeshire District Council,30/03/2017,The Oyster Partnership,638360,760,,Planning,Supplies and Services,4401,Agency Workers,Redacted Personal Data - Week Commencing 20/3/17,
East Cambridgeshire District Council,09/03/2017,David Clark & Co Ltd,638245,"1,237.50",,Homelessness,Supplies and Services,4421,Sanctuary Homelessness/Rent Deposit,Deposit for Redacted Personal Data,
East Cambridgeshire District Council,14/03/2017,Ben Layn Builders Ltd,638302,975,,Homelessness,Supplies and Services,4421,Sanctuary Homelessness/Rent Deposit,Redacted Personal Data,
East Cambridgeshire District Council,12/03/2017,Cheffins Client Account,638303,"1,192.50",,Homelessness,Supplies and Services,4421,Sanctuary Homelessness/Rent Deposit,Redacted Personal Data,
East Cambridgeshire District Council,02/03/2017,Peterborough City Council,638180,"46,189.85",,Local Plan Preparation,Supplies and Services,4430,Consultants Fees,Staff Support Service by PCC - Q3 2016/17,
East Cambridgeshire District Council,06/03/2017,Locata (Housing Services) Ltd,638213,"3,750.00",,National Practitioner Support Programme,Supplies and Services,4430,Consultants Fees,Gold standard support June 2016-March 2016,
East Cambridgeshire District Council,06/03/2017,Locata (Housing Services) Ltd,638214,"10,000.00",,National Practitioner Support Programme,Supplies and Services,4430,Consultants Fees,Gold standard support April 2016-March 2017,
East Cambridgeshire District Council,10/03/2017,Jeremy Benn Associates Limited,638249,"5,431.45",,Local Plan Preparation,Supplies and Services,4430,Consultants Fees,Submission of Final Level 1 SFRA,
East Cambridgeshire District Council,15/03/2017,East of England Local Government Association,638281,"2,500.00",,Management Team,Supplies and Services,4430,Consultants Fees,Highways study - Redacted Personal Data,
East Cambridgeshire District Council,20/03/2017,Foresight Consulting (UK) Ltd,638286,"3,588.00",,Transformation Programme,Supplies and Services,4430,Consultants Fees,Redacted Personal Data 6 days,
East Cambridgeshire District Council,27/03/2017,Plan Alpha Systems Ltd,638316,"1,400.00",,Building Regulations Admin,Supplies and Services,4430,Consultants Fees,Re-Design Building Control Area on ECDC Website,
East Cambridgeshire District Council,28/03/2017,Peterborough City Council,638322,"49,059.05",,Local Plan Preparation,Supplies and Services,4430,Consultants Fees,Staff support services PCC Q4,
East Cambridgeshire District Council,15/03/2017,East of England Local Government Association,638340,"3,483.40",,Corp.Man.Policy Research/Review,Supplies and Services,4430,Consultants Fees,Redacted Personal Data Feb 2017,
East Cambridgeshire District Council,08/03/2017,Sanctuary Housing Association,1136614,"5,000.00",,Infrastructure and Strategy,Supplies and Services,4430,Consultants Fees,Management Fee,
East Cambridgeshire District Council,08/03/2017,South Cambridgeshire District Council,1136615,"9,134.10",,Infrastructure and Strategy,Supplies and Services,4430,Consultants Fees,Home-Link Management Costs,
East Cambridgeshire District Council,10/03/2017,Cambridgeshire County Council,1136628,"4,887.50",,Planning,Supplies and Services,4430,Consultants Fees,Archaeological Services Oct16-March17,
East Cambridgeshire District Council,02/03/2017,Peterborough City Council,638179,"7,191.80",,Legal,Supplies and Services,4443,Solicitors Fees,Legal Time Q3,
East Cambridgeshire District Council,15/03/2017,Alternative Networks plc,638366,550,,Information Technology,Supplies and Services,4452,IT - Upgrade consultants,Mitel MiVoice Training,
East Cambridgeshire District Council,24/11/2016,Idox Software Limited,638370,"6,925.00",,Information Technology,Supplies and Services,4452,IT - Upgrade consultants,"50% on Completion - Upgrade Uniform, Oracle & Public Access",
East Cambridgeshire District Council,09/03/2017,Royal Mail Group plc,638229,787,,E Space North,Supplies and Services,4510,Postage,Weekday Collection Fee - ESpace North,
East Cambridgeshire District Council,17/03/2017,Corporate Mailing Solutions,638282,"154,644.43",,Combined Authority Mayoral Elections,Supplies and Services,4510,Postage,Mayoral Election postage,
East Cambridgeshire District Council,17/03/2017,Purchase Power,638298,"1,013.00",,E Space North,Supplies and Services,4510,Postage,Meter Reset & Transaction Fee 20/2/17,
East Cambridgeshire District Council,08/03/2017,Royal Mail Group plc,1136599,787,,E Space South,Supplies and Services,4510,Postage,2000094643 E-Space South weekday coll fee,
East Cambridgeshire District Council,15/03/2017,Neopost Ltd,1136642,"2,000.00",,DMS,Supplies and Services,4510,Postage,Postage Recredit 22/2 & 6/3,
East Cambridgeshire District Council,03/03/2017,Ip-Xchange Ltd,1136578,"1,137.58",,E Space South,Supplies and Services,4520,Telephone,ESpace South,
East Cambridgeshire District Council,03/03/2017,Ip-Xchange Ltd,1136579,"2,135.89",,E Space North,Supplies and Services,4520,Telephone,ESpace North,
East Cambridgeshire District Council,06/03/2017,Virgin Media Payments Ltd - 743058701,1136583,"1,947.70",,The Grange,Supplies and Services,4520,Telephone,Account Number 743058701,
East Cambridgeshire District Council,06/03/2017,Virgin Media Payments Ltd - 743058701,1136584,"2,002.33",,The Grange,Supplies and Services,4520,Telephone,Account Number 743058701,
East Cambridgeshire District Council,08/03/2017,Alternative Networks plc,1136601,"1,559.88",,Information Technology,Supplies and Services,4520,Telephone,Fixed Line 1/2/17-28/2/17,
East Cambridgeshire District Council,08/03/2017,Virgin Media Payments - 923467,1136598,"1,634.14",,Information Technology,Supplies and Services,4522,Contributions (IT Only CCN),923467 Feb 2017,
East Cambridgeshire District Council,21/03/2017,Local World Ltd - Cambridge Newspapers,638296,546,,Member & Committee Support,Supplies and Services,4530,Adverts Other Than Staff,,
East Cambridgeshire District Council,07/03/2017,Local World Ltd - Cambridge Newspapers,638206,567,,Planning,Supplies and Services,4532,T&C Planning Act Adverts,cambridge news 2/3/17,
East Cambridgeshire District Council,07/03/2017,AK Artist Management,638216,500,,Marketing & Grants,Supplies and Services,4540,Promotion Costs,Ely Food & Drink 2017,
East Cambridgeshire District Council,03/03/2017,ARCO Ltd,638269,"1,284.00",,Home Energy Conservation,Supplies and Services,4540,Promotion Costs,,
East Cambridgeshire District Council,03/02/2017,Alternative Networks plc,638311,"29,708.00",,Information Technology,Supplies and Services,4550,IT Licences,,
East Cambridgeshire District Council,09/03/2017,EACS Ltd,638321,"11,811.36",,Information Technology,Supplies and Services,4550,IT Licences,Mimecast M2A,
East Cambridgeshire District Council,22/03/2017,OpenVPN,5106002,123.12,,LATC,Supplies and Services,4550,IT Licences,Sub/Licence,Y
East Cambridgeshire District Council,22/03/2017,L0phtCrack7,5106002,-505.7,,Information Technology,Supplies and Services,4550,IT Licences,L0phtCrack7,Y
East Cambridgeshire District Council,22/03/2017,LoginTC,5106002,221.6,,LATC,Supplies and Services,4550,IT Licences,Sub/Licence,Y
East Cambridgeshire District Council,22/03/2017,L0phtCrack7,5106002,"1,326.85",,Information Technology,Supplies and Services,4550,IT Licences,L0phtCrack7 ,Y
East Cambridgeshire District Council,22/03/2017,Splinterware,5106002,24.91,,Information Technology,Supplies and Services,4550,IT Licences,System Schedule ,Y
East Cambridgeshire District Council,03/02/2017,Alternative Networks plc,638311,"23,655.00",,Information Technology,Supplies and Services,4551,Hardware Purchases/Maint,,
East Cambridgeshire District Council,20/03/2017,Branching Out,638290,"2,000.00",,Economic Development Admin,Supplies and Services,4710,Grants,Apprenticeship Grant,
East Cambridgeshire District Council,20/02/2017,Manchester City Council,638133,"8,662.80",,National Practitioner Support Programme,Supplies and Services,4713,Grants - Contributions,Redacted Personal Data- Jan & Feb 2017,
East Cambridgeshire District Council,23/03/2017,Manchester City Council,638358,"4,503.69",,National Practitioner Support Programme,Supplies and Services,4713,Grants - Contributions,Redacted Personal Data - March 2017,
East Cambridgeshire District Council,27/03/2017,LuvEly,1136688,"1,239.82",,Community Safety,Supplies and Services,4713,Grants - Contributions,"Room Rental & Management Services 28/2, 7/3, 14/3, 21/3 & 28/3",
East Cambridgeshire District Council,07/03/2017,Bottisham Village College,638217,815,,Sports Co-ord (Leisure Centre & Sports Facs SLA/Investment),Supplies and Services,4730,Grants - Sports Dec,SLA Grant funding for exercise bikes,
East Cambridgeshire District Council,01/03/2017,Littleport Leisure,638266,"4,880.00",,Sport & Recreation Admin,Supplies and Services,4730,Grants - Sports Dec,,
East Cambridgeshire District Council,27/03/2017,The Ellesmere Centre,638313,610,,Sports Co-ord (Leisure Centre & Sports Facs SLA/Investment),Supplies and Services,4730,Grants - Sports Dec,SLA Grant - Cricket Mats Trolley,
East Cambridgeshire District Council,02/03/2017,Soham Town Council,638181,616,,Town Centres,Supplies and Services,4731,Grants - Community,Soham Town Centre Hanging Baskets 2016,
East Cambridgeshire District Council,22/03/2017,Google,5106002,6.6,,LATC,Supplies and Services,4780,Subscriptions - General,Google SVC app,Y
East Cambridgeshire District Council,10/03/2017,Rannerlow Ltd,1136621,975,,Homelessness,Supplies and Services,4910,Other Payments,Rent Deposit. FAO: Redacted Personal Data,
East Cambridgeshire District Council,17/03/2017,Bemrose Mobile Ltd,1136653,"1,590.00",,Angel Drove Commuters Car Park,Supplies and Services,4910,Other Payments,Rental of 2 Handsets 23/6/15-31/12/16 & Replacement Handset,
East Cambridgeshire District Council,22/03/2017,ICO,5106002,105,,Member & Committee Support,Supplies and Services,4913,Data Protect Act Fee,DPA Regs,Y
East Cambridgeshire District Council,02/03/2017,Cambridgeshire County Council,638174,"2,200.00",,Local Plan Preparation,Supplies and Services,4919,To County Council,Wider Economic Benefits of Improved Rail Frequency,
East Cambridgeshire District Council,30/03/2017,Heating & Plumbing Services (Wisbech) Ltd,1136700,"2,716.77",,Home Improvement Agency Services,Supplies and Services,4938,Client Contribution,Inv 03/17/337 C & R Redacted Personal Data,
East Cambridgeshire District Council,30/03/2017,PVS Holdings Ltd,1136702,912.91,,Home Improvement Agency Services,Supplies and Services,4938,Client Contribution,Inv 34986 Redacted Personal Data,
East Cambridgeshire District Council,30/03/2017,Paul Barrow Builders  Ltd,1136705,"5,482.05",,Home Improvement Agency Services,Supplies and Services,4938,Client Contribution,Inv 1585 -  Redacted Personal Data,
East Cambridgeshire District Council,30/03/2017,Ashco Building & Maintenance Services Ltd,1136707,708.52,,Home Improvement Agency Services,Supplies and Services,4938,Client Contribution,Inv AC0214196 Redacted Personal Data,
East Cambridgeshire District Council,30/03/2017,PVS Holdings Ltd,1136708,"1,325.00",,Home Improvement Agency Services,Supplies and Services,4938,Client Contribution,Inv 35075 Redacted Personal Data,
East Cambridgeshire District Council,28/02/2017,Prominent PR Ltd,638184,"4,500.00",,Public Relations,Third Party Payments,5010,Contracted Services,Communication Delivery,
East Cambridgeshire District Council,06/03/2017,Forest Heath District Council,638219,"7,205.00",,Internal Audit,Third Party Payments,5010,Contracted Services,Audit recharges 31/8/16-28/2/17,
East Cambridgeshire District Council,28/03/2017,Forest Heath District Council,638336,"5,630.00",,Internal Audit,Third Party Payments,5010,Contracted Services,ARP Internal Audit 2016/17,
East Cambridgeshire District Council,13/03/2017,Cambridgeshire County Council,638341,"30,900.00",,Internal Audit,Third Party Payments,5010,Contracted Services,LGSS Audit,
East Cambridgeshire District Council,13/03/2017,Cambridgeshire County Council,638342,"2,000.00",,Internal Audit,Third Party Payments,5010,Contracted Services,LGSS Audit Risk & Mngt,
East Cambridgeshire District Council,19/12/2016,AmeyCespa (East) Limited,1136107,"9,988.91",,Recycling,Third Party Payments,5010,Contracted Services,Mixed recyclables less rebate to 31/10/16,
East Cambridgeshire District Council,06/03/2017,Cambridgeshire County Council,1136574,"12,734.50",,Public Relations,Third Party Payments,5010,Contracted Services,Communications Support 1/7/15-30/9/15,
East Cambridgeshire District Council,07/03/2017,SLM Ltd,1136600,"9,363.00",,Paradise Pool,Third Party Payments,5010,Contracted Services,Management Fee March 2017,
East Cambridgeshire District Council,10/03/2017,Veolia ES (UK) Ltd,1136622,"1,564.30",,Bulk Waste,Third Party Payments,5010,Contracted Services,Monthly Collections 1/2/17-28/2/17,
East Cambridgeshire District Council,10/03/2017,Veolia ES (UK) Ltd,1136622,"30,752.50",,Recycling,Third Party Payments,5010,Contracted Services,Monthly Collections 1/2/17-28/2/17,
East Cambridgeshire District Council,10/03/2017,Veolia ES (UK) Ltd,1136622,"30,752.50",,Recycling Organic Waste,Third Party Payments,5010,Contracted Services,Monthly Collections 1/2/17-28/2/17,
East Cambridgeshire District Council,10/03/2017,Veolia ES (UK) Ltd,1136622,"72,678.66",,Refuse Collection,Third Party Payments,5010,Contracted Services,Monthly Collections 1/2/17-28/2/17,
East Cambridgeshire District Council,10/03/2017,Veolia ES (UK) Ltd,1136622,"41,110.17",,Weekly Collection Support Grant,Third Party Payments,5010,Contracted Services,Monthly Collections 1/2/17-28/2/17,
East Cambridgeshire District Council,10/03/2017,Veolia ES (UK) Ltd,1136622,"45,162.31",,Street Cleansing,Third Party Payments,5010,Contracted Services,Monthly Collections 1/2/17-28/2/17,
East Cambridgeshire District Council,23/03/2017,AmeyCespa (East) Limited,1136677,"12,234.10",,Recycling,Third Party Payments,5010,Contracted Services,October Credit-Rebate Reversal,
East Cambridgeshire District Council,23/03/2017,AmeyCespa (East) Limited,1136678,"6,316.83",,Recycling,Third Party Payments,5010,Contracted Services,October Re-Invoice,
East Cambridgeshire District Council,30/03/2017,East Cambs Trading Co Ltd,1136711,"36,233.72",,Thursday Market,Third Party Payments,5010,Contracted Services,Management Fee for Market Services for Qtr 4 ending 31/3/17,
East Cambridgeshire District Council,23/03/2017,AmeyCespa (East) Limited,1136676,"-22,223.01",,Recycling,Third Party Payments,5010,Contracted Services,Relates to Invoice ASI26542,
East Cambridgeshire District Council,01/03/2017,Breckland Council,1136545,"38,358.90",,Council Tax Collection Costs,Third Party Payments,5020,ARP Services,Provision of services 16/17,
East Cambridgeshire District Council,01/03/2017,Breckland Council,1136545,"47,059.53",,Housing Benefits,Third Party Payments,5020,ARP Services,Provision of services 16/17,
East Cambridgeshire District Council,01/03/2017,Breckland Council,1136545,"9,716.74",,NNDR Collection costs,Third Party Payments,5020,ARP Services,Provision of services 16/17,
East Cambridgeshire District Council,01/03/2017,Breckland Council,1136545,"-1,016.11",,Anglia Revenue Partnerships (ARP),Third Party Payments,5020,ARP Services,Provision of services 16/17,
East Cambridgeshire District Council,01/03/2017,Breckland Council,1136549,"1,149.00",,NNDR Collection costs,Third Party Payments,5023,Grants Paid Over (ARP),2017 Despatching letter grant,
East Cambridgeshire District Council,30/03/2017,Breckland Council,1136710,"4,799.24",,Housing Benefits,Third Party Payments,5023,Grants Paid Over (ARP),Final New Burdens Payment 2016/17 for the Real Time Information Bulk Data Matching Initative,
East Cambridgeshire District Council,30/03/2017,Paul Barrow Builders  Ltd,1136714,"2,220.00",,Discretionary Repayment Loan,Capital Costs,C108,Supplies & Services,Invoice 1602 - Redacted Personal Data,
East Cambridgeshire District Council,30/03/2017,Paul Barrow Builders  Ltd,1136716,744.72,,Discretionary Repayment Loan,Capital Costs,C108,Supplies & Services,Invoice 1601 Redacted Personal Data,
East Cambridgeshire District Council,20/03/2017,Pellikaan Holding (Belgie) NV,638293,"472,674.85",,Leisure Facility,Capital Costs,C201,Payments To Contractors,Ely Leisure centre,
East Cambridgeshire District Council,20/03/2017,Mace Limited,638280,"18,799.00",,Leisure Facility,Capital Costs,C301,Professional Fees,RIBA 5 February 2017,
East Cambridgeshire District Council,23/03/2017,Ingleton Wood LLP,638339,"3,000.00",,Littleport Station Car Park,Capital Costs,C301,Professional Fees,Land Adj to Littleport Station,
East Cambridgeshire District Council,29/03/2017,University of Cambridge,638364,"30,418.75",,Leisure Facility,Capital Costs,C301,Professional Fees,Archaeological Excavation,
East Cambridgeshire District Council,01/03/2017,East Cambs Trading Co Ltd,638185,"3,829.00",,Littleport Station Car Park,Capital Costs,C302,Consultants Fees,Operating Services Q3 to Dec 2016,
East Cambridgeshire District Council,15/03/2017,Energetics Design & Build Limited,638265,"17,211.00",,Leisure Facility,Capital Costs,C304,Contingency,Ely Leisure Centre Phase 2,
East Cambridgeshire District Council,16/03/2017,"Bob Smith Heating, Plumbing & Electrical Ltd",1136638,746.4,,Home Repair Assistance,Capital Costs,C402,Home Imp.Grant 50% advance,Redacted Personal Data,
East Cambridgeshire District Council,16/03/2017,4 Front Interiors Ltd,1136647,"9,500.00",,Mandatory Disabled Fac.Grant,Capital Costs,C402,Home Imp.Grant 50% advance,Redacted Personal Data,
East Cambridgeshire District Council,30/03/2017,Hugh Steeper Ltd,1136696,691.08,,Mandatory Disabled Fac.Grant,Capital Costs,C402,Home Imp.Grant 50% advance,Redacted Personal Data,
East Cambridgeshire District Council,30/03/2017,Mitchell & Mayle Ltd,1136717,570,,Home Repair Assistance,Capital Costs,C402,Home Imp.Grant 50% advance,Redacted Personal Data,
East Cambridgeshire District Council,09/03/2017,Gas Heating Services Ltd,1136619,"3,880.50",,Mandatory Disabled Fac.Grant,Capital Costs,C404,Home Imp.Grant. Final payment,Redacted Personal Data,
East Cambridgeshire District Council,30/03/2017,Heating & Plumbing Services (Wisbech) Ltd,1136699,"3,525.72",,Mandatory Disabled Fac.Grant,Capital Costs,C404,Home Imp.Grant. Final payment,Redacted Personal Data,
East Cambridgeshire District Council,30/03/2017,PVS Holdings Ltd,1136701,"1,369.37",,Mandatory Disabled Fac.Grant,Capital Costs,C404,Home Imp.Grant. Final payment,Redacted Personal Data,
East Cambridgeshire District Council,30/03/2017,"Bob Smith Heating, Plumbing & Electrical Ltd",1136703,"5,709.70",,Mandatory Disabled Fac.Grant,Capital Costs,C404,Home Imp.Grant. Final payment,Redacted Personal Data,
East Cambridgeshire District Council,30/03/2017,Paul Barrow Builders  Ltd,1136704,"6,162.07",,Mandatory Disabled Fac.Grant,Capital Costs,C404,Home Imp.Grant. Final payment,Redacted Personal Data,
East Cambridgeshire District Council,30/03/2017,Ashco Building & Maintenance Services Ltd,1136706,"6,402.79",,Mandatory Disabled Fac.Grant,Capital Costs,C404,Home Imp.Grant. Final payment,Redacted Personal Data,
East Cambridgeshire District Council,30/03/2017,Paul Barrow Builders  Ltd,1136715,"8,480.00",,Mandatory Disabled Fac.Grant,Capital Costs,C404,Home Imp.Grant. Final payment,Redacted Personal Data,
East Cambridgeshire District Council,09/03/2017,CP Home Improvements,1136617,"2,401.00",,Home Repair Assistance,Capital Costs,C405,Home Repair Grants,Redacted Personal Data,
East Cambridgeshire District Council,09/03/2017,Gas Heating Services Ltd,1136620,"1,000.00",,Home Repair Assistance,Capital Costs,C405,Home Repair Grants,Redacted Personal Data,
East Cambridgeshire District Council,01/03/2017,City of Ely Council,638169,"11,590.91",,Section 106 Agreements,Section 106,P360,Section 106 Rev Payments,Riverside improvement works,
East Cambridgeshire District Council,23/03/2017,RJH Technical Consultancy Ltd,638318,937.5,,Section 106 Agreements,Section 106,P360,Section 106 Rev Payments,,
